bitfinex/quotes_BTCUSD_20251215
["timestamp","ask_amount","ask_price","bid_price","bid_amount"]
[1765827750260,0.00211399,86360.0,86359.0,0.01261287]
[1765827750261,0.11794404,86360.0,86359.0,0.01261287]
[1765827751900,0.00211399,86360.0,86359.0,0.36395425]
[1765827752781,0.00011399,86360.0,86359.0,0.28145425]
[1765827753130,0.00211399,86360.0,86359.0,0.28945425]
[1765827753344,0.00211399,86360.0,86359.0,0.008]
[1765827753532,0.00211399,86360.0,86359.0,0.004]
[1765827753533,0.2802233,86360.0,86359.0,0.004]
[1765827753980,0.2747233,86360.0,86359.0,0.008]
[1765827754332,0.23161291,86351.0,86349.0,0.01158091]
[1765827754564,0.23161291,86351.0,86347.0,0.01158117]
[1765827754565,0.11583005,86348.0,86347.0,0.2432041]
[1765827755000,0.11583005,86348.0,86310.0,0.00099999]
[1765827755001,0.12741109,86348.0,86320.0,0.46338951]
[1765827755211,0.01158158,86344.0,86338.0,0.01158238]
[1765827755416,0.00999396,86349.0,86347.0,0.09385117]
[1765827755613,0.23160374,86355.0,86347.0,0.09385117]
[1765827755614,0.0115801,86355.0,86350.0,0.23161443]
[1765827755819,0.24318863,86353.0,86348.0,0.27987068]
[1765827756119,0.01158064,86351.0,86348.0,0.24320102]
[1765827756339,0.001,86351.0,86349.0,0.003]
[1765827756498,0.002,86351.0,86349.0,0.23761817]
[1765827756668,0.0115805,86352.0,86349.0,0.23161817]
[1765827756864,0.01158091,86349.0,86342.0,0.01158184]
[1765827757105,0.02157487,86349.0,86348.0,0.005]
[1765827757349,0.00999396,86349.0,86348.0,0.002]
[1765827757484,0.00999396,86348.0,86347.0,0.01158117]
[1765827757683,0.00999396,86348.0,86347.0,0.24320341]
[1765827758815,0.00999396,86348.0,86343.0,0.01158171]
[1765827758816,0.24322427,86341.0,86337.0,0.02994251]
[1765827759017,0.23164234,86340.0,86334.0,0.01158292]
[1765827759214,0.23164234,86340.0,86333.0,0.04703305]
[1765827759215,0.01158158,86344.0,86339.0,0.01158225]
[1765827759471,0.23163788,86342.0,86339.0,0.23164469]
[1765827759691,0.23164287,86340.0,86338.0,0.01319525]
[1765827759883,0.24322219,86341.0,86338.0,0.01319525]
[1765827760375,0.001,86340.0,86339.0,0.005]
[1765827760610,0.01158171,86343.0,86340.0,0.231642]
[1765827760812,0.24322016,86342.0,86339.0,0.01158225]
[1765827760963,0.002,86341.0,86339.0,0.01158225]
[1765827761178,0.002,86341.0,86338.0,0.25484182]
[1765827761389,0.002,86341.0,86338.0,0.02319525]
[1765827761586,0.23164234,86340.0,86338.0,0.01161287]
[1765827761793,0.01358198,86341.0,86338.0,0.25484035]
[1765827761990,0.01358198,86341.0,86338.0,0.01161287]
[1765827762173,0.35397507,86339.0,86338.0,0.01161287]
[1765827762463,0.35397507,86339.0,86338.0,0.00661287]
[1765827762664,0.35397507,86339.0,86338.0,0.00161287]
[1765827763069,0.35397507,86339.0,86327.0,0.01836]
[1765827763070,0.23167024,86330.0,86327.0,0.24326027]
[1765827763269,0.23167024,86330.0,86282.0,0.03481152]
[1765827763270,0.01808372,86328.0,86322.0,0.01158453]
[1765827763493,0.23168,86326.0,86323.0,0.23168722]
[1765827763692,0.01808372,86328.0,86323.0,0.23168722]
[1765827763693,0.0065,86328.0,86324.0,0.23168459]
[1765827763899,0.00999396,86329.0,86328.0,0.23167454]
[1765827764100,0.11583005,86329.0,86328.0,0.23167454]
[1765827764297,0.11583005,86329.0,86328.0,0.23178851]
[1765827764463,0.11583005,86329.0,86328.0,0.00011397]
[1765827764668,0.11583005,86329.0,86328.0,0.35153851]
[1765827765522,0.11583005,86329.0,86328.0,0.11986397]
[1765827766109,0.11683005,86329.0,86328.0,0.12286397]
[1765827766321,0.3495019,86329.0,86328.0,0.00711397]
[1765827766724,0.23367185,86329.0,86328.0,0.00711397]
[1765827766900,0.3560019,86329.0,86328.0,0.00711397]
[1765827767453,0.18316918,86329.0,86328.0,0.00711397]
[1765827768327,0.18316918,86329.0,86328.0,0.00311397]
[1765827768727,0.18416918,86329.0,86328.0,0.00311397]
[1765827768889,0.17766918,86329.0,86328.0,0.00311397]
[1765827769092,0.17866918,86329.0,86328.0,0.00611397]
[1765827770076,0.18516918,86329.0,86328.0,0.00611397]
[1765827770396,0.28431899,86329.0,86328.0,0.00611397]
[1765827770553,0.28431899,86329.0,86328.0,0.00210397]
[1765827770755,0.63585221,86329.0,86328.0,0.00210397]
[1765827770957,0.69192021,86329.0,86328.0,0.00210397]
[1765827771139,0.6607729,86329.0,86328.0,0.00210397]
[1765827771537,0.6597729,86329.0,86328.0,0.00210397]
[1765827771760,0.01158694,86304.0,86301.0,0.01158735]
[1765827771960,0.23174177,86303.0,86301.0,0.01331442]
[1765827772491,0.01158694,86304.0,86301.0,0.00172707]
[1765827772699,0.34757438,86302.0,86301.0,0.00172707]
[1765827772902,0.34757438,86302.0,86301.0,0.00772707]
[1765827773062,0.34757438,86302.0,86301.0,0.00172707]
[1765827773489,0.34757438,86302.0,86301.0,0.01372707]
[1765827773697,0.29081335,86302.0,86301.0,0.01372707]
[1765827774114,0.24823829,86302.0,86301.0,0.01372707]
[1765827774746,0.24823829,86302.0,86301.0,0.00172707]
[1765827774922,0.24923829,86302.0,86301.0,0.00672707]
[1765827775107,0.25023829,86302.0,86301.0,0.01072707]
[1765827776806,0.25023829,86302.0,86301.0,0.0091142]
[1765827777013,0.35543683,86302.0,86301.0,0.0091142]
[1765827778096,0.35443683,86302.0,86301.0,0.0041142]
[1765827778306,1.64413683,86302.0,86301.0,0.0001142]
[1765827778532,1.64513683,86302.0,86301.0,0.0041142]
[1765827778784,1.71996674,86302.0,86301.0,0.0021142]
[1765827779005,1.76088323,86302.0,86301.0,0.0001142]
[1765827779224,1.73073592,86302.0,86301.0,0.0001142]
[1765827779429,1.73073592,86302.0,86301.0,0.0011142]
[1765827779855,0.68831963,86292.0,86291.0,0.0004]
[1765827780078,1.72394881,86292.0,86291.0,0.00078106]
[1765827780281,1.75526033,86292.0,86291.0,0.00078106]
[1765827781363,1.7862451,86292.0,86291.0,0.00078106]
[1765827781814,1.7882451,86292.0,86291.0,0.00178106]
[1765827782022,1.90457625,86292.0,86291.0,0.00178106]
[1765827782452,1.87359148,86292.0,86291.0,0.00178106]
[1765827783321,1.88519086,86292.0,86291.0,0.00178106]
[1765827783535,1.78721971,86292.0,86291.0,0.00178106]
[1765827783764,1.75626033,86292.0,86291.0,0.00178106]
[1765827784188,1.75624693,86292.0,86291.0,0.00178106]
[1765827784403,1.75624693,86292.0,86291.0,0.00078106]
[1765827784404,1.75524693,86292.0,86291.0,0.00078106]
[1765827784608,1.87257808,86292.0,86291.0,0.00178106]
[1765827784810,1.87457808,86292.0,86291.0,0.00278106]
[1765827785049,1.7882166,86292.0,86291.0,0.00178106]
[1765827785939,1.7872166,86292.0,86291.0,0.00178106]
[1765827786355,1.7862166,86292.0,86291.0,0.00078106]
[1765827786491,2.0303166,86292.0,86291.0,0.00078106]
[1765827786691,2.14764775,86292.0,86291.0,0.00178106]
[1765827787368,2.11667808,86292.0,86291.0,0.00178106]
[1765827787526,2.11767808,86292.0,86291.0,0.00278106]
[1765827787724,2.11667808,86292.0,86291.0,0.00178106]
[1765827787924,2.11567808,86292.0,86291.0,0.00078106]
[1765827788125,2.11667808,86292.0,86291.0,0.00178106]
[1765827788337,2.11867808,86292.0,86291.0,0.00278106]
[1765827788674,2.0013406,86292.0,86291.0,0.00178106]
[1765827788881,2.0013406,86292.0,86291.0,0.00278106]
[1765827788882,2.0023406,86292.0,86291.0,0.00278106]
[1765827789115,2.03333507,86292.0,86291.0,0.00178106]
[1765827789323,1.66062221,86292.0,86291.0,0.00178106]
[1765827789519,1.65087276,86292.0,86291.0,0.00178106]
[1765827789725,2.03309239,86292.0,86291.0,0.00178106]
[1765827790130,0.91676124,86292.0,86291.0,0.00178106]
[1765827790404,0.91676124,86292.0,86291.0,0.00339393]
[1765827790405,0.11883005,86292.0,86291.0,0.00339393]
[1765827790578,0.11783005,86292.0,86291.0,0.00339393]
[1765827790989,0.11683005,86292.0,86291.0,0.23516781]
[1765827791189,0.001,86292.0,86291.0,0.28339781]
[1765827791339,0.11583005,86293.0,86292.0,0.23077119]
[1765827791563,0.2317526,86299.0,86292.0,0.23077119]
[1765827791564,0.00999396,86299.0,86298.0,0.01158775]
[1765827791750,0.23174433,86302.0,86299.0,0.23175222]
[1765827791948,0.24333226,86302.0,86299.0,0.2449527]
[1765827792150,0.11583005,86300.0,86299.0,0.00161287]
[1765827792620,0.01158694,86304.0,86299.0,0.00161287]
[1765827792621,0.01158654,86307.0,86300.0,0.24333531]
[1765827792792,0.01158708,86303.0,86300.0,0.04984287]
[1765827792991,0.01158708,86303.0,86300.0,0.29317787]
[1765827793326,0.01158708,86303.0,86300.0,0.00161287]
[1765827793327,0.24174098,86301.0,86300.0,0.00161287]
[1765827793504,0.00999396,86301.0,86300.0,0.23336258]
[1765827793708,0.00999396,86301.0,86300.0,0.35224258]
[1765827793909,0.11583005,86308.0,86304.0,0.01158694]
[1765827794109,0.11583005,86308.0,86300.0,0.00161287]
[1765827794110,0.11583005,86301.0,86300.0,0.00161287]
[1765827794309,0.11583005,86301.0,86300.0,0.00061287]
[1765827794494,0.11683005,86301.0,86300.0,0.00161287]
[1765827794692,0.00999396,86305.0,86303.0,0.23173921]
[1765827794937,0.00999396,86305.0,86303.0,0.00061286]
[1765827795092,0.23173359,86306.0,86304.0,0.001]
[1765827795307,0.23173359,86306.0,86303.0,0.00061286]
[1765827795308,0.23173896,86304.0,86303.0,0.00061286]
[1765827795814,0.231737,86305.0,86303.0,0.00061286]
[1765827796018,0.11583005,86304.0,86303.0,0.00061286]
[1765827797117,0.11583005,86304.0,86303.0,0.11949286]
[1765827797326,0.11583005,86305.0,86304.0,0.003]
[1765827797762,0.11683005,86304.0,86303.0,0.00361286]
[1765827797993,0.11783005,86304.0,86303.0,0.00761286]
[1765827798338,0.11783005,86304.0,86303.0,0.05584286]
[1765827798726,0.11783005,86304.0,86303.0,0.00761286]
[1765827798956,0.12433005,86304.0,86303.0,0.00761286]
[1765827799534,0.122312,86304.0,86303.0,0.00761286]
[1765827799890,0.115812,86304.0,86303.0,0.00761286]
[1765827800097,0.115812,86304.0,86303.0,0.23935451]
[1765827800339,0.115812,86304.0,86303.0,0.00761286]
[1765827801039,0.115812,86305.0,86304.0,0.24332494]
[1765827801257,0.01158654,86307.0,86303.0,0.12649286]
[1765827801258,0.115812,86304.0,86303.0,0.23935451]
[1765827801543,0.115812,86304.0,86303.0,0.00761286]
[1765827801889,0.115812,86304.0,86303.0,0.23535451]
[1765827803431,0.115812,86308.0,86306.0,0.23173242]
[1765827803762,0.115812,86308.0,86305.0,0.01158681]
[1765827803763,0.24273292,86304.0,86303.0,0.00761286]
[1765827803967,0.02179542,86304.0,86303.0,0.00761286]
[1765827804183,0.25253438,86304.0,86303.0,0.00361286]
[1765827804391,0.02079542,86304.0,86303.0,0.00361286]
[1765827804598,0.00999396,86304.0,86303.0,0.35423451]
[1765827804928,0.12661468,86306.0,86305.0,0.23173628]
[1765827805135,0.001,86308.0,86306.0,0.23173172]
[1765827805414,0.001,86308.0,86307.0,0.04823]
[1765827805415,0.23172822,86308.0,86307.0,0.04823]
[1765827805625,0.24253055,86308.0,86305.0,0.24393595]
[1765827805816,0.115812,86306.0,86305.0,0.24393595]
[1765827806024,0.115812,86309.0,86308.0,0.231727]
[1765827806226,0.115812,86309.0,86305.0,0.24393595]
[1765827806227,0.23173359,86306.0,86305.0,0.00061286]
[1765827806634,0.25253004,86306.0,86305.0,0.00061286]
[1765827806812,0.02079645,86306.0,86305.0,0.00061286]
[1765827807010,0.02079645,86306.0,86305.0,0.00561286]
[1765827807011,0.02179645,86306.0,86305.0,0.00561286]
[1765827807218,0.01099396,86306.0,86305.0,0.00561286]
[1765827807424,0.24272755,86306.0,86305.0,0.00561286]
[1765827807646,0.01099396,86306.0,86305.0,0.23734914]
[1765827808015,0.01199396,86306.0,86305.0,0.24134914]
[1765827810231,0.01199396,86306.0,86305.0,0.00961286]
[1765827810448,0.24372755,86306.0,86305.0,0.00961286]
[1765827811029,0.01199396,86306.0,86305.0,0.00961286]
[1765827811619,0.01199396,86306.0,86305.0,0.28908914]
[1765827812230,0.117812,86306.0,86305.0,0.36038914]
[1765827812641,0.117812,86306.0,86305.0,0.24134914]
[1765827812790,0.117812,86306.0,86305.0,0.00961286]
[1765827813387,0.24372755,86306.0,86305.0,0.00961286]
[1765827815057,0.01199396,86306.0,86305.0,0.24134914]
[1765827815401,0.002,86306.0,86305.0,0.36143914]
[1765827817377,0.05336449,86313.0,86309.0,0.23172372]
[1765827817578,0.25412516,86313.0,86310.0,0.231721]
[1765827817786,0.24254212,86312.0,86310.0,0.231721]
[1765827817984,0.01082428,86311.0,86310.0,0.24330714]
[1765827818187,0.01158574,86313.0,86310.0,0.24330714]
[1765827818188,0.254127,86313.0,86310.0,0.24330714]
[1765827818349,0.01082428,86312.0,86311.0,0.23172017]
[1765827818550,0.115812,86312.0,86311.0,0.10646]
[1765827818748,0.115812,86312.0,86311.0,0.08456286]
[1765827818749,0.11583005,86312.0,86311.0,0.08456286]
[1765827819053,0.34754754,86312.0,86311.0,0.08456286]
[1765827819247,0.23171749,86312.0,86311.0,0.08356286]
[1765827819450,0.23171552,86313.0,86311.0,0.08356286]
[1765827819695,0.03486475,86315.0,86314.0,0.23171212]
[1765827819897,0.11583005,86315.0,86314.0,0.04879]
[1765827820105,0.11583005,86315.0,86314.0,0.28050212]
[1765827820307,0.11583005,86315.0,86314.0,0.04779]
[1765827820688,0.11583005,86315.0,86314.0,0.27950212]
[1765827820888,0.27424576,86317.0,86316.0,0.23170675]
[1765827820889,0.14678452,86317.0,86316.0,0.23170675]
[1765827821256,0.11583005,86317.0,86316.0,0.35140961]
[1765827821683,0.11583005,86317.0,86316.0,0.35040961]
[1765827822062,0.11683005,86317.0,86316.0,0.35440961]
[1765827822303,0.11783005,86317.0,86316.0,0.36040961]
[1765827822510,0.002,86317.0,86316.0,0.36040961]
[1765827825563,0.001,86317.0,86316.0,0.35440961]
[1765827825771,0.002,86317.0,86316.0,0.36440961]
[1765827826207,0.001,86317.0,86316.0,0.36040961]
[1765827826365,0.002,86317.0,86316.0,0.36740961]
[1765827828550,0.002,86317.0,86316.0,0.38576961]
[1765827830652,0.002,86317.0,86316.0,0.36740961]
[1765827831838,0.03095447,86335.0,86332.0,0.24324699]
[1765827832075,0.04132491,86340.0,86335.0,0.23165575]
[1765827832076,0.03095447,86336.0,86335.0,0.23165575]
[1765827832288,0.01084436,86339.0,86336.0,0.01158265]
[1765827832448,0.04132491,86341.0,86340.0,0.23164234]
[1765827832852,0.04132491,86342.0,86341.0,0.23163966]
[1765827833071,0.00011397,86342.0,86341.0,0.30293966]
[1765827833378,0.04173623,86342.0,86341.0,0.35172966]
[1765827833533,0.00011397,86342.0,86341.0,0.35172966]
[1765827835106,0.00111397,86342.0,86341.0,0.35572966]
[1765827835531,0.00111397,86342.0,86341.0,0.35872966]
[1765827835898,0.01110793,86342.0,86341.0,0.007]
[1765827836272,0.00999396,86339.0,86334.0,0.03516]
[1765827836478,0.04277906,86336.0,86331.0,0.01108332]
[1765827836734,0.11583005,86330.0,86329.0,0.24325493]
[1765827837226,0.11583005,86330.0,86329.0,0.36334493]
[1765827838731,0.11683005,86330.0,86329.0,0.05479]
[1765827839111,0.11783005,86330.0,86329.0,0.05879]
[1765827839315,0.11883005,86330.0,86329.0,0.01]
[1765827839493,0.11883005,86330.0,86329.0,0.05879]
[1765827839494,0.003,86330.0,86329.0,0.05879]
[1765827839830,0.003,86330.0,86329.0,0.15325718]
[1765827840211,0.003,86330.0,86329.0,0.38492903]
[1765827840418,0.003,86330.0,86329.0,0.36176185]
[1765827840616,0.002,86330.0,86329.0,0.36176185]
[1765827840988,0.002,86330.0,86329.0,0.36237471]
[1765827841439,0.002,86330.0,86329.0,0.01061286]
[1765827842757,0.002,86330.0,86329.0,0.36545471]
[1765827850994,0.002,86330.0,86329.0,0.82262669]
[1765827851134,0.00011397,86342.0,86341.0,0.23163966]
[1765827851495,0.00011397,86342.0,86341.0,0.33464966]
[1765827851613,0.00011397,86342.0,86341.0,0.40849966]
[1765827851813,0.00011397,86342.0,86341.0,0.39013966]
[1765827852061,0.00011397,86342.0,86339.0,0.01158225]
[1765827852062,0.00111397,86342.0,86339.0,0.01158225]
[1765827852275,0.00111397,86342.0,86341.0,0.23163966]
[1765827852501,0.00211397,86342.0,86341.0,0.23763966]
[1765827852709,0.00211397,86342.0,86341.0,0.006]
[1765827852920,0.23375094,86342.0,86341.0,0.006]
[1765827853153,0.2437449,86342.0,86341.0,0.006]
[1765827853546,0.2542349,86342.0,86341.0,0.012]
[1765827853804,0.23165731,86335.0,86332.0,0.01158319]
[1765827853972,0.24324009,86335.0,86331.0,0.23166135]
[1765827854191,0.24324009,86335.0,86332.0,0.23166323]
[1765827854604,0.24324009,86335.0,86328.0,0.23167406]
[1765827854605,0.11583005,86327.0,86322.0,0.03533]
[1765827854765,0.11583005,86327.0,86324.0,0.01158426]
[1765827854970,0.11583005,86327.0,86326.0,0.28099991]
[1765827855373,0.11583005,86327.0,86326.0,0.35484991]
[1765827856826,0.11583005,86333.0,86332.0,0.24324482]
[1765827857175,0.11583005,86333.0,86332.0,0.36641482]
[1765827857370,0.23164977,86338.0,86336.0,0.01158265]
[1765827857371,0.00999396,86338.0,86336.0,0.01158265]
[1765827857573,0.01158144,86345.0,86336.0,0.01158265]
[1765827857574,0.00999396,86344.0,86341.0,0.23163966]
[1765827857776,0.00999396,86344.0,86341.0,0.31628966]
[1765827857983,0.01158117,86347.0,86341.0,0.39013966]
[1765827858248,0.11583005,86347.0,86341.0,0.39013966]
[1765827858651,0.25319064,86350.0,86341.0,0.39213966]
[1765827858985,0.00999396,86350.0,86341.0,0.39213966]
[1765827859176,0.01158091,86349.0,86341.0,0.39213966]
[1765827859379,0.00999396,86350.0,86341.0,0.39213966]
[1765827859689,0.00999396,86350.0,86341.0,0.39275252]
[1765827859827,0.00999396,86350.0,86341.0,0.39075252]
[1765827860230,0.00999396,86350.0,86341.0,0.39375252]
[1765827860452,0.14707019,86353.0,86341.0,0.39375252]
[1765827860677,0.11583005,86353.0,86341.0,0.39375252]
[1765827860906,0.03262049,86358.0,86341.0,0.39575252]
[1765827861079,0.00138035,86358.0,86341.0,0.39575252]
[1765827861484,0.00138035,86358.0,86341.0,0.39275252]
[1765827861713,0.00138035,86358.0,86341.0,0.50720611]
[1765827861886,0.00111397,86342.0,86341.0,0.51520611]
[1765827862087,0.00111397,86342.0,86341.0,0.52120611]
[1765827866421,0.00111397,86342.0,86341.0,0.40475252]
[1765827867504,0.00111397,86342.0,86341.0,0.42311252]
[1765827869131,0.00011397,86342.0,86341.0,0.41511252]
[1765827869603,0.00111397,86342.0,86341.0,0.42111252]
[1765827869908,0.00111397,86342.0,86341.0,0.41511252]
[1765827870111,0.00111397,86342.0,86341.0,0.41911252]
[1765827872395,0.00111397,86342.0,86341.0,0.16911286]
[1765827872594,0.00111397,86342.0,86341.0,0.40075252]
[1765827872904,0.00111397,86342.0,86341.0,0.09465]
[1765827873088,0.34958099,86342.0,86341.0,0.01]
[1765827873535,0.34858099,86342.0,86341.0,0.004]
[1765827873769,0.45890165,86342.0,86341.0,0.004]
[1765827873947,0.23275094,86342.0,86341.0,0.004]
[1765827874154,0.23275094,86342.0,86341.0,0.006]
[1765827874347,0.23275094,86342.0,86341.0,0.004]
[1765827874748,0.23275094,86342.0,86341.0,0.005]
[1765827875152,0.23275094,86342.0,86341.0,0.001]
[1765827875590,0.23275094,86342.0,86341.0,0.004]
[1765827875902,0.23275094,86342.0,86341.0,0.003]
[1765827876081,0.23275094,86342.0,86326.0,0.01158399]
[1765827876082,0.23166224,86333.0,86326.0,0.01158399]
[1765827876317,0.01158292,86334.0,86330.0,0.01158345]
[1765827876560,0.24324312,86334.0,86331.0,0.23166649]
[1765827876800,0.01158305,86333.0,86329.0,0.27966277]
[1765827877050,0.01158305,86333.0,86308.0,0.08479472]
[1765827877051,0.01158412,86325.0,86321.0,0.01158466]
[1765827877274,0.01158372,86328.0,86325.0,0.01158412]
[1765827877513,0.01158372,86328.0,86322.0,0.04691453]
[1765827877514,0.01158386,86327.0,86324.0,0.24326915]
[1765827877739,0.24326182,86327.0,86324.0,0.24326915]
[1765827877944,0.23167725,86327.0,86325.0,0.01158412]
[1765827878148,0.23167725,86327.0,86324.0,0.08487426]
[1765827878149,0.01158386,86327.0,86324.0,0.08487426]
[1765827878361,0.23167991,86326.0,86324.0,0.07329]
[1765827878573,0.01158399,86326.0,86323.0,0.24327131]
[1765827878789,0.23167186,86329.0,86326.0,0.24326137]
[1765827878993,0.24325297,86330.0,86327.0,0.24325997]
[1765827879199,0.2432477,86332.0,86330.0,0.2316689]
[1765827879433,0.2432477,86332.0,86329.0,0.27966462]
[1765827879884,0.2432477,86332.0,86329.0,0.04799359]
[1765827880086,0.24324736,86332.0,86330.0,0.23166916]
[1765827880302,0.01158292,86334.0,86330.0,0.003]
[1765827880511,0.24323857,86335.0,86332.0,0.24324467]
[1765827881020,0.24323857,86335.0,86333.0,0.23166058]
[1765827881253,0.24323597,86336.0,86333.0,0.23166058]
[1765827881440,0.23166112,86333.0,86330.0,0.24325169]
[1765827881678,0.24324937,86332.0,86329.0,0.04799359]
[1765827881898,0.01158319,86332.0,86329.0,0.28266544]
[1765827882106,0.01158305,86333.0,86331.0,0.28078649]
[1765827882321,0.01158278,86335.0,86332.0,0.28078126]
[1765827882540,0.24323859,86335.0,86334.0,0.04912]
[1765827882757,0.23166112,86333.0,86331.0,0.01158332]
[1765827882971,0.24323875,86335.0,86332.0,0.01158319]
[1765827883188,0.23166385,86332.0,86330.0,0.01158345]
[1765827883405,0.23166385,86332.0,86331.0,0.001]
[1765827884137,0.24215385,86332.0,86331.0,0.001]
[1765827884372,0.33926662,86332.0,86331.0,0.001]
[1765827884991,0.35907986,86331.0,86330.0,0.003]
[1765827885198,0.36956986,86331.0,86330.0,0.003]
[1765827885405,0.36956986,86331.0,86330.0,0.002]
[1765827885613,0.36956986,86331.0,86315.0,0.24328987]
[1765827885614,0.23169791,86320.0,86315.0,0.24328987]
[1765827885822,0.23169791,86320.0,86317.0,0.2317028]
[1765827886083,0.00999396,86323.0,86321.0,0.23169322]
[1765827886084,0.02157835,86323.0,86321.0,0.23169322]
[1765827886289,0.24327517,86322.0,86318.0,0.01158506]
[1765827886498,0.24327517,86322.0,86318.0,0.24328505]
[1765827886499,0.2316958,86321.0,86318.0,0.24328505]
[1765827887331,0.2316958,86321.0,86318.0,0.01158506]
[1765827887521,0.2316958,86321.0,86318.0,0.24328609]
[1765827887728,0.02157835,86323.0,86319.0,0.2432833]
[1765827887932,0.24327731,86322.0,86317.0,0.23170248]
[1765827888136,0.24327865,86321.0,86318.0,0.3215743]
[1765827888348,0.24327865,86321.0,86318.0,0.2482843]
[1765827888552,0.24327865,86321.0,86318.0,0.2432843]
[1765827888779,0.24327865,86321.0,86319.0,0.005]
[1765827888912,0.01158466,86321.0,86319.0,0.23669824]
[1765827889113,0.24327817,86321.0,86319.0,0.005]
[1765827889481,0.24327731,86322.0,86319.0,0.23169808]
[1765827889621,0.001,86321.0,86319.0,0.24328301]
[1765827889816,0.001,86321.0,86320.0,0.23169601]
[1765827890157,0.001,86321.0,86319.0,0.24728301]
[1765827890742,0.23269349,86321.0,86319.0,0.24728335]
[1765827890947,0.23169166,86322.0,86319.0,0.24728314]
[1765827891196,0.001,86321.0,86319.0,0.02058493]
[1765827891369,0.001,86321.0,86319.0,0.01658493]
[1765827891547,0.23269535,86321.0,86320.0,0.004]
[1765827891755,0.23169535,86321.0,86320.0,0.004]
[1765827892408,0.24427619,86322.0,86319.0,0.24828314]
[1765827892590,0.24327619,86322.0,86319.0,0.24328314]
[1765827892931,0.24328292,86320.0,86319.0,0.003]
[1765827893054,0.24328292,86320.0,86317.0,0.24328783]
[1765827893262,0.01258466,86321.0,86319.0,0.04912]
[1765827893634,0.01158453,86322.0,86319.0,0.04912]
[1765827893774,0.2316281,86321.0,86319.0,0.28143071]
[1765827893975,0.24327729,86322.0,86319.0,0.28143071]
[1765827894197,0.24427729,86322.0,86319.0,0.28643071]
[1765827894375,0.24427729,86322.0,86320.0,0.004]
[1765827894752,0.23169601,86320.0,86319.0,0.00561286]
[1765827894970,0.23169601,86320.0,86319.0,0.00961286]
[1765827895136,0.35801606,86320.0,86319.0,0.00461286]
[1765827895341,0.35801606,86320.0,86319.0,0.00061286]
[1765827895543,0.34752606,86320.0,86319.0,0.00061286]
[1765827896136,0.34752606,86320.0,86319.0,0.00161286]
[1765827897134,0.24218601,86320.0,86319.0,0.00161286]
[1765827897336,0.23169601,86320.0,86319.0,0.00561286]
[1765827898393,0.34752606,86320.0,86319.0,0.00561286]
[1765827899449,0.23169601,86320.0,86319.0,0.00561286]
[1765827899948,0.2316949,86321.0,86319.0,0.00561286]
[1765827900152,0.23169601,86320.0,86319.0,0.00561286]
[1765827900332,0.23169601,86320.0,86319.0,0.005]
[1765827900333,0.36850606,86320.0,86319.0,0.005]
[1765827900763,0.36850606,86320.0,86319.0,0.001]
[1765827901051,0.36850606,86320.0,86294.0,0.01158829]
[1765827901052,0.01158775,86298.0,86294.0,0.01158829]
[1765827901282,0.01158735,86301.0,86298.0,0.01158775]
[1765827901479,0.24333534,86301.0,86297.0,0.24334547]
[1765827901707,0.23175508,86298.0,86295.0,0.01158815]
[1765827901929,0.24333683,86302.0,86295.0,0.01158815]
[1765827901930,0.23175793,86297.0,86295.0,0.24396177]
[1765827902149,0.23174946,86301.0,86298.0,0.23175508]
[1765827902373,0.11583006,86306.0,86303.0,0.23174003]
[1765827902574,0.23174154,86304.0,86300.0,0.24333484]
[1765827902772,0.12741673,86306.0,86302.0,0.23174382]
[1765827903010,0.23175199,86300.0,86296.0,0.24334843]
[1765827903200,0.23174638,86302.0,86298.0,0.23175277]
[1765827903404,0.23174638,86302.0,86296.0,0.01158802]
[1765827903405,0.23175577,86298.0,86295.0,0.00099392]
[1765827903605,0.01158775,86298.0,86295.0,0.00099392]
[1765827903816,0.01158748,86300.0,86296.0,0.23176032]
[1765827904052,0.24333959,86300.0,86296.0,0.23176032]
[1765827904265,0.24333592,86301.0,86297.0,0.24334319]
[1765827904442,0.24333592,86301.0,86298.0,0.003]
[1765827904588,0.24333592,86301.0,86297.0,0.01158788]
[1765827904814,0.001,86298.0,86297.0,0.24334555]
[1765827905008,0.001,86298.0,86297.0,0.01158788]
[1765827905236,0.23275756,86298.0,86295.0,0.01758207]
[1765827905485,0.23176045,86296.0,86295.0,0.00599392]
[1765827905687,0.01258775,86298.0,86295.0,0.23775699]
[1765827905841,0.24434537,86298.0,86295.0,0.00599392]
[1765827906044,0.23176045,86296.0,86295.0,0.00038106]
[1765827906734,0.45866933,86296.0,86295.0,0.00038106]
[1765827907151,0.34959051,86296.0,86295.0,0.00538106]
[1765827907300,0.34959051,86296.0,86295.0,0.00838106]
[1765827907502,0.34959051,86296.0,86295.0,0.00538106]
[1765827907711,0.34859051,86296.0,86295.0,0.00038106]
[1765827907911,0.34859051,86296.0,86295.0,0.00238106]
[1765827909233,0.34859051,86296.0,86295.0,0.00638106]
[1765827910288,0.46173239,86296.0,86295.0,0.00638106]
[1765827910435,0.46173239,86296.0,86295.0,0.00538106]
[1765827910628,0.46811345,86296.0,86295.0,0.00538106]
[1765827911019,0.46811345,86296.0,86295.0,0.004]
[1765827911452,1.82066655,86296.0,86295.0,0.004]
[1765827911683,1.84563596,86296.0,86295.0,0.004]
[1765827911887,1.76373422,86296.0,86295.0,0.004]
[1765827912265,0.34760125,86292.0,86291.0,0.0004]
[1765827912402,0.36596125,86292.0,86291.0,0.0004]
[1765827913931,0.36596125,86292.0,86291.0,0.0014]
[1765827914133,0.36696125,86292.0,86291.0,0.0014]
[1765827915131,0.36696125,86292.0,86291.0,0.0004]
[1765827915545,0.36696125,86292.0,86291.0,0.0024]
[1765827916424,0.25113119,86292.0,86291.0,0.0024]
[1765827917049,0.25577572,86292.0,86291.0,0.0024]
[1765827918288,0.25113119,86292.0,86291.0,0.0024]
[1765827919211,0.46813683,86292.0,86291.0,0.0024]
[1765827919414,0.4930604,86292.0,86291.0,0.0024]
[1765827919592,0.39188482,86292.0,86291.0,0.0024]
[1765827919793,0.36696125,86292.0,86291.0,0.0024]
[1765827920496,0.65766125,86292.0,86291.0,0.0024]
[1765827920728,1.69340318,86292.0,86291.0,0.0024]
[1765827920911,1.80973433,86292.0,86291.0,0.0024]
[1765827921732,1.85975272,86292.0,86291.0,0.0024]
[1765827922235,1.74342157,86292.0,86291.0,0.0024]
[1765827923795,0.67504318,86292.0,86291.0,0.0024]
[1765827924003,0.66422482,86292.0,86291.0,0.0024]
[1765827925177,0.6750434,86292.0,86291.0,0.0024]
[1765827925679,0.61922569,86292.0,86291.0,0.0024]
[1765827926038,1.73555684,86292.0,86291.0,0.0024]
[1765827927153,1.73555684,86292.0,86290.0,0.0004]
[1765827927154,0.68833576,86286.0,86285.0,1e-08]
[1765827927378,1.74243791,86286.0,86285.0,1e-08]
[1765827927926,1.69241952,86286.0,86285.0,1e-08]
[1765827928131,0.69241952,86286.0,86285.0,1e-08]